bitfinex/quotes_BTCUSD_20251104
["timestamp","ask_amount","ask_price","bid_price","bid_amount"]
[1762251276259,0.73054872,103800.0,103790.0,0.00227146]
[1762251276402,0.02894681,103800.0,103790.0,0.00227146]
[1762251276601,0.03194681,103800.0,103790.0,0.00227146]
[1762251278059,0.03194681,103800.0,103790.0,0.08547146]
[1762251278386,0.37194681,103800.0,103790.0,0.00227146]
[1762251279556,0.37194681,103800.0,103790.0,0.13471053]
[1762251280212,0.37194681,103800.0,103790.0,0.18095053]
[1762251280508,0.03194681,103800.0,103790.0,0.18095053]
[1762251280710,0.03194681,103800.0,103790.0,0.19644856]
[1762251280971,0.003,103800.0,103790.0,0.19644856]
[1762251281194,0.003,103800.0,103790.0,0.27202856]
[1762251281402,0.003,103800.0,103790.0,0.25653053]
[1762251281973,0.003,103800.0,103790.0,0.25553053]
[1762251282141,0.004,103800.0,103790.0,0.25853053]
[1762251282616,0.001,103800.0,103790.0,0.25853053]
[1762251282819,0.001,103800.0,103790.0,0.4874096]
[1762251283025,0.001,103800.0,103790.0,0.29471281]
[1762251283259,0.003,103800.0,103790.0,0.29571281]
[1762251283465,0.003,103800.0,103790.0,0.4884096]
[1762251283906,0.003,103800.0,103790.0,0.29571281]
[1762251284075,1.0705371,103830.0,103790.0,0.25553053]
[1762251284258,0.34,103810.0,103790.0,0.25480595]
[1762251284456,0.003,103800.0,103790.0,0.26180595]
[1762251284990,0.343,103800.0,103790.0,0.13998595]
[1762251285317,0.342,103800.0,103790.0,0.13598595]
[1762251285530,0.342,103800.0,103790.0,0.18296595]
[1762251285737,0.34,103800.0,103790.0,0.17896595]
[1762251286241,0.34,103800.0,103790.0,0.17996595]
[1762251286478,0.34,103800.0,103790.0,0.24923595]
[1762251286666,0.34,103810.0,103790.0,0.24823595]
[1762251286865,0.34,103810.0,103800.0,0.04598]
[1762251287199,0.34,103810.0,103800.0,0.06147339]
[1762251287671,1.04360191,103810.0,103800.0,0.06147339]
[1762251288216,1.04360191,103810.0,103800.0,0.04598]
[1762251289002,1.04160191,103810.0,103800.0,0.04598]
[1762251289143,1.04360191,103810.0,103800.0,0.04698]
[1762251290485,1.04360191,103810.0,103800.0,0.11625]
[1762251290666,0.002,103810.0,103800.0,0.04698]
[1762251290872,0.002,103810.0,103800.0,0.001483]
[1762251290873,0.02608245,103810.0,103800.0,0.001483]
[1762251291100,0.36608245,103810.0,103800.0,0.001483]
[1762251291442,0.34585919,103810.0,103800.0,0.001483]
[1762251292050,0.00885919,103810.0,103800.0,0.002483]
[1762251292407,0.00685919,103810.0,103800.0,0.001483]
[1762251292593,0.01185919,103810.0,103800.0,0.001483]
[1762251293229,0.00385919,103810.0,103800.0,0.000483]
[1762251293577,0.00885919,103810.0,103800.0,0.000483]
[1762251294009,0.00885919,103810.0,103800.0,0.046463]
[1762251295771,0.00885919,103810.0,103800.0,0.115733]
[1762251296370,0.00885919,103810.0,103800.0,0.000483]
[1762251296573,0.29699792,103810.0,103800.0,0.000483]
[1762251296769,0.70424758,103810.0,103800.0,0.000483]
[1762251297400,0.69924758,103810.0,103800.0,0.000483]
[1762251297636,0.70224758,103810.0,103800.0,0.001483]
[1762251298746,0.51458792,103810.0,103800.0,0.001483]
[1762251299144,0.46531599,103810.0,103800.0,0.001483]
[1762251299788,0.36319888,103810.0,103800.0,0.047463]
[1762251300255,0.35185919,103810.0,103800.0,0.047463]
[1762251300469,0.35185919,103810.0,103800.0,0.001483]
[1762251301129,0.01185919,103810.0,103800.0,0.001483]
[1762251301341,0.01185919,103810.0,103800.0,0.13222639]
[1762251301549,0.008,103810.0,103800.0,0.116733]
[1762251301751,0.008,103810.0,103800.0,0.15291528]
[1762251302108,0.003,103810.0,103800.0,0.16291527]
[1762251302474,0.005,103810.0,103800.0,0.35559349]
[1762251302691,0.002,103810.0,103800.0,0.36459348]
[1762251303071,0.001,103810.0,103800.0,0.37722739]
[1762251303268,0.00088753,103840.0,103810.0,0.03618228]
[1762251303486,0.00088753,103840.0,103800.0,0.37422739]
[1762251303487,0.003,103810.0,103800.0,0.18724228]
[1762251303646,0.004,103810.0,103800.0,0.15606]
[1762251303850,0.003,103810.0,103800.0,0.15106]
[1762251304265,0.004,103810.0,103800.0,0.15706]
[1762251304471,0.003,103810.0,103800.0,0.15106]
[1762251304811,0.00088753,103840.0,103800.0,0.15106]
[1762251305011,0.00088753,103840.0,103820.0,0.09547907]
[1762251305300,0.00088753,103840.0,103810.0,0.03581]
[1762251305424,0.02496303,103840.0,103820.0,0.09547907]
[1762251305845,0.02896303,103840.0,103820.0,0.09547907]
[1762251306485,0.27874734,103840.0,103800.0,0.10508]
[1762251306688,0.31304662,103840.0,103810.0,0.09547907]
[1762251306891,0.53262255,103830.0,103820.0,0.001]
[1762251307178,0.56156045,103830.0,103820.0,0.001]
[1762251307384,0.34,103820.0,103790.0,0.14159595]
[1762251308284,0.34,103830.0,103800.0,0.001]
[1762251308477,0.02408013,103820.0,103800.0,0.001]
[1762251308817,0.34,103830.0,103810.0,0.09547907]
[1762251309174,0.002,103820.0,103810.0,0.09547907]
[1762251309818,0.4363666,103840.0,103810.0,0.09547907]
[1762251309819,0.01637924,103830.0,103810.0,0.09547907]
[1762251310027,0.01637924,103830.0,103810.0,0.09647907]
[1762251310243,0.01637924,103830.0,103810.0,0.09547907]
[1762251310445,0.01637924,103830.0,103810.0,0.09747907]
[1762251310834,0.01637924,103830.0,103810.0,0.09547907]
[1762251311085,0.01837924,103830.0,103810.0,0.09547907]
[1762251311784,0.01837924,103830.0,103790.0,0.15560886]
[1762251312020,0.01212349,103830.0,103800.0,0.09547907]
[1762251312242,0.04144,103820.0,103810.0,0.001]
[1762251312629,0.1036,103820.0,103810.0,0.001]
[1762251312989,0.1036,103820.0,103800.0,0.09547907]
[1762251313200,0.01579,103810.0,103800.0,0.001]
[1762251313590,0.01579,103810.0,103790.0,0.153897]
[1762251314010,0.06216,103820.0,103800.0,0.04598]
[1762251314221,0.06216,103820.0,103810.0,0.09547907]
[1762251314598,0.06216,103820.0,103810.0,0.09647907]
[1762251314599,0.06416,103820.0,103810.0,0.09647907]
[1762251314794,0.10446,103820.0,103810.0,0.00012907]
[1762251315165,0.10646,103820.0,103810.0,0.00012907]
[1762251315370,0.002,103820.0,103810.0,0.15653907]
[1762251315573,0.002,103820.0,103810.0,0.15641]
[1762251315832,0.01802,103830.0,103810.0,0.15641]
[1762251316002,0.01802,103830.0,103820.0,0.09547907]
[1762251316239,0.01802,103830.0,103820.0,0.10679824]
[1762251316458,0.01802,103830.0,103820.0,0.06756824]
[1762251316686,0.05946,103860.0,103820.0,0.22784731]
[1762251316924,0.03874,103850.0,103820.0,0.22784731]
[1762251317101,0.001,103830.0,103820.0,0.22784731]
[1762251317374,0.03874,103850.0,103820.0,0.21739907]
[1762251317552,0.004,103830.0,103820.0,0.21739907]
[1762251317972,0.03874,103850.0,103820.0,0.21739907]
[1762251318393,0.05876,103830.0,103820.0,0.09647907]
[1762251318819,0.05764762,103830.0,103820.0,0.09647907]
[1762251320609,0.05964762,103830.0,103820.0,0.09947907]
[1762251322376,0.09838762,103830.0,103820.0,0.004]
[1762251322687,0.5579445,103830.0,103820.0,0.004]
[1762251322963,0.53386669,103830.0,103820.0,0.004]
[1762251323666,0.53186669,103830.0,103820.0,0.001]
[1762251323866,0.06061,103810.0,103790.0,0.10717058]
[1762251324071,0.06061,103810.0,103790.0,0.14166058]
[1762251325017,0.06061,103810.0,103790.0,0.04531058]
[1762251325287,0.06061,103810.0,103800.0,0.09547907]
[1762251325703,0.06261,103810.0,103800.0,0.09547907]
[1762251326136,0.002,103810.0,103800.0,0.16004148]
[1762251326583,0.002,103810.0,103800.0,0.06369148]
[1762251326808,0.46975,103810.0,103800.0,0.001]
[1762251327270,0.39737,103810.0,103800.0,0.06556382]
[1762251327488,0.342,103810.0,103800.0,0.13854382]
[1762251328152,0.342,103810.0,103800.0,0.04220382]
[1762251328372,0.342,103810.0,103800.0,0.08681382]
[1762251328805,0.37808,103810.0,103800.0,0.04561]
[1762251329472,0.42694,103810.0,103800.0,0.001]
[1762251329732,0.37808,103810.0,103800.0,0.04616]
[1762251329928,0.37808,103810.0,103790.0,0.07978907]
[1762251330334,0.38839,103800.0,103790.0,0.07978907]
[1762251330540,0.45795,103800.0,103790.0,0.07978907]
[1762251330742,0.38839,103800.0,103790.0,0.07978907]
[1762251331270,0.04839,103800.0,103790.0,0.08078907]
[1762251331476,0.04839,103800.0,103780.0,0.01912907]
[1762251331701,0.04839,103800.0,103790.0,0.09547907]
[1762251331918,0.11795,103800.0,103790.0,0.09647907]
[1762251332137,0.11795,103800.0,103790.0,0.09547907]
[1762251332354,0.04839,103800.0,103790.0,0.09547907]
[1762251332568,0.04939,103800.0,103790.0,0.09747907]
[1762251332994,0.04939,103800.0,103790.0,0.00110907]
[1762251333627,0.05139,103800.0,103790.0,0.00110907]
[1762251334901,0.05139,103800.0,103790.0,0.09547907]
[1762251336268,0.05139,103800.0,103790.0,0.09572062]
[1762251336520,0.003,103800.0,103790.0,0.09547907]
[1762251336756,0.343,103800.0,103790.0,0.09547907]
[1762251336997,0.39139,103800.0,103790.0,0.09547907]
[1762251337468,0.343,103800.0,103790.0,0.09547907]
[1762251337948,0.003,103800.0,103790.0,0.13166135]
[1762251338419,0.003,103800.0,103790.0,0.32435814]
[1762251338710,0.003,103800.0,103790.0,0.13166135]
[1762251339162,0.003,103800.0,103790.0,0.31959814]
[1762251339392,0.003,103800.0,103790.0,0.13079042]
[1762251339599,0.003,103800.0,103790.0,0.32348721]
[1762251341165,0.001,103800.0,103790.0,0.32348721]
[1762251341368,0.00088772,103820.0,103800.0,0.03618228]
[1762251341681,0.00088772,103820.0,103810.0,0.09547907]
[1762251341889,0.07044772,103820.0,103810.0,0.09547907]
[1762251342236,0.45883772,103820.0,103810.0,0.09547907]
[1762251342864,0.45983772,103820.0,103800.0,0.03532135]
[1762251343006,0.45983772,103820.0,103810.0,0.09547907]
[1762251343337,0.46183772,103820.0,103810.0,0.09747907]
[1762251343537,0.39227772,103820.0,103810.0,0.09747907]
[1762251343937,0.39127772,103820.0,103810.0,0.09747907]
[1762251344342,0.39227772,103820.0,103810.0,0.00113907]
[1762251344545,0.39127772,103820.0,103810.0,0.09661814]
[1762251344927,0.39227772,103820.0,103810.0,0.09661814]
[1762251346018,0.39227772,103820.0,103810.0,0.00027814]
[1762251346221,0.34388772,103820.0,103810.0,0.00027814]
[1762251346462,0.39245772,103820.0,103810.0,0.00027814]
[1762251347108,0.39245772,103820.0,103810.0,0.09547907]
[1762251347309,0.39245772,103820.0,103810.0,0.07222907]
[1762251347615,0.34388772,103820.0,103810.0,0.09547907]
[1762251347941,0.34388772,103820.0,103810.0,0.24287907]
[1762251348802,0.39245772,103820.0,103810.0,0.24287907]
[1762251348984,0.46088772,103820.0,103810.0,0.24202814]
[1762251351006,0.34388772,103820.0,103810.0,0.24202814]
[1762251351216,0.34388772,103820.0,103810.0,0.4346878]
[1762251351418,0.00388772,103820.0,103810.0,0.28813873]
[1762251351649,0.00388772,103820.0,103810.0,0.69087006]
[1762251352100,0.00188772,103820.0,103810.0,0.69087006]
[1762251352303,0.00088772,103820.0,103810.0,0.69087006]
[1762251352546,0.00288772,103820.0,103810.0,0.69187006]
[1762251352766,0.00388772,103820.0,103810.0,0.69387006]
[1762251352977,0.00188772,103820.0,103810.0,0.68287007]
[1762251353182,0.10199,103850.0,103820.0,0.19263969]
[1762251353390,0.37356,103850.0,103840.0,0.09547907]
[1762251353749,0.42309558,103850.0,103840.0,0.09547907]
[1762251353956,0.49152558,103850.0,103840.0,0.09547907]
[1762251354377,0.49152558,103850.0,103840.0,0.0913063]
[1762251354561,0.49152558,103850.0,103840.0,0.0890163]
[1762251354768,0.49552558,103850.0,103830.0,0.09547907]
[1762251354990,0.004,103850.0,103830.0,0.09552806]
[1762251355217,0.001,103850.0,103830.0,0.28814898]
[1762251355421,0.001,103850.0,103830.0,0.09552806]
[1762251355618,0.003,103850.0,103840.0,0.002]
[1762251356088,0.42915,103860.0,103830.0,0.29121136]
[1762251356296,0.42915,103860.0,103850.0,0.09547907]
[1762251356479,0.47772,103860.0,103850.0,0.00574907]
[1762251357858,0.47872,103860.0,103840.0,0.09547907]
[1762251358100,0.48172,103860.0,103840.0,0.09547907]
[1762251358329,0.004,103860.0,103850.0,0.19258545]
[1762251358573,0.001,103860.0,103840.0,0.28808057]
[1762251358804,0.004,103860.0,103850.0,0.002]
[1762251359009,0.004,103860.0,103850.0,0.19458545]
[1762251359216,0.004,103860.0,103850.0,0.002]
[1762251359430,0.001,103860.0,103850.0,0.19258545]
[1762251359606,0.001,103860.0,103850.0,0.35903771]
[1762251360040,0.01094233,103870.0,103860.0,0.03618228]
[1762251360279,0.03356,103890.0,103860.0,0.3338566]
[1762251360493,0.03356,103900.0,103880.0,0.09547907]
[1762251361076,0.37356,103900.0,103880.0,0.09547907]
[1762251361218,0.03356,103900.0,103880.0,0.09547907]
[1762251361420,0.00193035,103890.0,103880.0,0.09547907]
[1762251361681,0.01254154,103890.0,103880.0,0.09552807]
[1762251361927,0.01254154,103890.0,103880.0,0.002]
[1762251361928,0.00193035,103890.0,103880.0,0.002]
[1762251362093,0.49249035,103890.0,103880.0,0.002]
[1762251362305,0.49249035,103890.0,103860.0,0.1508994]
[1762251362626,0.49256,103890.0,103880.0,0.002]
[1762251363369,0.08213,103870.0,103860.0,8.482e-05]
[1762251363990,0.03356,103870.0,103860.0,8.482e-05]
[1762251364190,0.03356,103870.0,103860.0,0.00208482]
[1762251364397,0.06843,103880.0,103860.0,0.00208482]
[1762251364747,0.08313,103870.0,103860.0,0.00208482]
[1762251364955,0.08313,103870.0,103860.0,0.00508482]
[1762251365125,0.08513,103870.0,103860.0,0.00508482]
[1762251365337,0.08513,103870.0,103850.0,0.09547907]
[1762251365489,0.08327615,103870.0,103850.0,0.09547907]
[1762251365873,0.08327615,103870.0,103860.0,0.002]
[1762251366182,0.08227615,103870.0,103860.0,0.002]
[1762251366641,0.08227615,103870.0,103860.0,0.003]
[1762251366838,0.03370615,103870.0,103850.0,0.00218907]
[1762251367040,0.00014615,103870.0,103850.0,0.00218907]
[1762251367241,0.00014615,103870.0,103850.0,0.03837135]
[1762251367447,0.00214615,103870.0,103850.0,0.03837135]
[1762251367641,0.00314615,103870.0,103860.0,0.003]
[1762251367816,0.00214615,103870.0,103850.0,0.03837135]
[1762251368035,0.00359421,103870.0,103850.0,0.62405331]
[1762251368233,0.00314615,103870.0,103860.0,0.00969388]
[1762251368415,0.00114615,103870.0,103850.0,0.61798294]
[1762251368810,0.00314615,103870.0,103850.0,0.81056526]
[1762251369011,0.00314615,103870.0,103850.0,0.81056815]
[1762251369221,0.00314615,103870.0,103850.0,0.40798295]
[1762251369430,0.00214615,103870.0,103850.0,0.41279387]
[1762251369638,0.00214615,103870.0,103860.0,0.09747907]
[1762251369968,0.00014615,103870.0,103860.0,0.09547907]
[1762251370390,0.00314615,103870.0,103860.0,0.09547907]
[1762251370601,0.00214615,103870.0,103860.0,0.09547907]
[1762251370801,0.00214615,103870.0,103860.0,0.28804598]
[1762251371056,0.00114615,103870.0,103860.0,0.29004598]
[1762251371260,0.00314615,103870.0,103860.0,0.29004598]
[1762251371446,0.00314615,103870.0,103860.0,0.19376598]
[1762251371864,0.00314615,103870.0,103860.0,0.002]
[1762251372078,0.00314615,103870.0,103860.0,0.19456691]
[1762251372670,0.00314615,103870.0,103860.0,0.002]
[1762251373419,0.00314615,103870.0,103850.0,0.35510856]
[1762251373576,0.00120684,103860.0,103850.0,0.45316991]
[1762251373777,0.00314615,103870.0,103860.0,0.24447007]
[1762251374161,0.01086291,103890.0,103860.0,0.24447007]
[1762251374402,0.37396,103910.0,103900.0,0.19249278]
[1762251374403,0.0004,103910.0,103900.0,0.19249278]
[1762251374614,0.0004,103940.0,103920.0,0.19245573]
[1762251374821,0.01155365,103940.0,103920.0,0.04287014]
[1762251375048,0.00054609,103940.0,103930.0,0.19243721]
[1762251375265,0.00054609,103940.0,103920.0,0.21214934]
[1762251375424,0.00054609,103940.0,103930.0,0.2024372]
[1762251375625,0.00054609,103940.0,103930.0,0.43875336]
[1762251375826,0.00054609,103940.0,103930.0,0.35203336]
[1762251376152,0.00054609,103940.0,103930.0,0.44805336]
[1762251377167,0.0004,103960.0,103950.0,0.19240019]
[1762251377359,0.0004,103960.0,103950.0,0.00969388]
[1762251378363,0.0004,103960.0,103950.0,0.43827635]
[1762251378567,0.0044,103960.0,103950.0,0.43827635]
[1762251378772,0.0044,103960.0,103950.0,0.44801634]
[1762251378978,0.0044,103960.0,103950.0,0.43755542]
[1762251379157,0.0044,103960.0,103950.0,0.44729541]
[1762251379741,0.0054,103960.0,103950.0,0.44729541]
[1762251380952,0.0054,103960.0,103950.0,0.43755542]
[1762251381172,0.0054,103960.0,103950.0,0.44729541]
[1762251381292,0.00756947,103960.0,103950.0,0.44729541]
[1762251382112,0.00756947,103960.0,103950.0,0.51777881]
[1762251383015,0.00756947,103960.0,103950.0,0.41188474]
[1762251383642,0.00756947,103960.0,103950.0,0.60428493]
[1762251383845,0.00756947,103960.0,103950.0,0.16596247]
[1762251384043,0.00756947,103960.0,103950.0,0.36810265]
[1762251385107,0.00756947,103960.0,103950.0,0.16596247]
[1762251385325,0.00756947,103960.0,103950.0,0.35836266]
[1762251385543,1.34,103970.0,103960.0,0.19238168]
[1762251386000,1.34024093,103970.0,103960.0,0.58548168]
[1762251386624,1.34724093,103970.0,103960.0,0.58548168]
[1762251386826,1.01024093,103970.0,103960.0,0.24359168]
[1762251387472,1.01003796,103970.0,103960.0,0.24359168]
[1762251387699,1.00703796,103970.0,103960.0,0.24359168]
[1762251387900,0.37312796,103970.0,103960.0,0.47977396]
[1762251388100,0.37412796,103970.0,103960.0,0.47977396]
[1762251389146,0.37312796,103970.0,103960.0,0.47977396]
[1762251389268,0.36612796,103970.0,103960.0,0.47977396]
[1762251389468,0.36912796,103970.0,103960.0,0.05321]
[1762251390081,0.36712796,103970.0,103960.0,0.05321]
[1762251390295,0.74377796,103970.0,103960.0,0.05321]
[1762251390528,0.86772796,103970.0,103960.0,0.05421]
[1762251390744,0.86798796,103970.0,103960.0,0.05421]
[1762251390957,0.87798795,103970.0,103960.0,0.05421]
[1762251391373,0.87798795,103970.0,103920.0,0.0812455]
[1762251391374,0.00026,103950.0,103920.0,0.20207686]
[1762251391580,0.00026,103950.0,103920.0,0.20222295]
[1762251391784,0.03691,103950.0,103920.0,0.00014609]
[1762251391984,0.03665,103950.0,103920.0,0.00014609]
[1762251392186,0.03691,103950.0,103920.0,0.20222447]
[1762251392427,0.03449147,103950.0,103920.0,0.20222447]
[1762251392638,0.34,103940.0,103920.0,0.00014609]
[1762251393073,0.34,103940.0,103910.0,0.48427233]
[1762251393257,0.34014593,103940.0,103920.0,0.19345303]
[1762251393435,0.34014593,103940.0,103920.0,0.001]
[1762251393638,0.34014593,103940.0,103920.0,0.19345493]
[1762251393843,0.00014593,103940.0,103920.0,0.19345493]
[1762251394243,0.00214593,103940.0,103920.0,0.19345493]
[1762251394635,0.00214593,103940.0,103920.0,0.24461493]
[1762251395397,0.00014593,103940.0,103920.0,0.34085479]
[1762251395743,0.00214593,103940.0,103920.0,0.1504]
[1762251396143,0.07517593,103940.0,103920.0,0.1504]
[1762251396550,0.42557,103930.0,103920.0,0.003]
[1762251397557,0.08557,103930.0,103920.0,0.003]
[1762251397917,0.1586,103930.0,103920.0,0.003]
[1762251398107,0.1586,103930.0,103890.0,0.53914415]
[1762251398523,0.1586,103930.0,103890.0,0.33689413]
[1762251398727,0.1606,103930.0,103920.0,0.004]
[1762251398926,0.1616,103930.0,103920.0,0.004]
[1762251399126,0.1586,103930.0,103890.0,0.46603436]
[1762251399330,0.1586,103930.0,103890.0,0.45629437]
[1762251399591,0.1586,103930.0,103890.0,0.05816]
[1762251399592,0.1616,103930.0,103890.0,0.05816]
[1762251399792,0.16186,103930.0,103890.0,0.05816]
[1762251400000,0.41329,103920.0,103890.0,0.05816]
[1762251400201,0.42328999,103920.0,103890.0,0.05816]
[1762251400360,0.03665,103910.0,103890.0,0.05816]
[1762251400569,0.38892,103900.0,103890.0,0.05816]
[1762251400884,0.39989319,103900.0,103890.0,0.004]
[1762251401080,0.35097319,103900.0,103890.0,0.004]
[1762251401336,0.35097319,103900.0,103870.0,0.05995406]
[1762251401337,0.39989319,103900.0,103870.0,0.05995406]
[1762251401535,0.47292319,103900.0,103870.0,0.05995406]
[1762251401667,0.47292319,103900.0,103870.0,0.20845519]
[1762251401888,0.39989319,103900.0,103870.0,0.20845519]
[1762251402535,0.01297319,103900.0,103880.0,0.19252951]
[1762251402740,0.01697319,103900.0,103870.0,0.21819518]
[1762251402944,0.01697319,103900.0,103880.0,0.07549623]
[1762251403162,0.01697319,103900.0,103880.0,0.2680256]
[1762251403368,0.01297319,103900.0,103880.0,0.2680256]
[1762251403769,0.01297319,103900.0,103890.0,0.19251131]
[1762251403978,0.01297319,103900.0,103880.0,0.2680256]
[1762251404180,0.01297319,103900.0,103880.0,0.17175495]
[1762251404583,0.01597319,103900.0,103890.0,0.19251131]
[1762251404782,0.01597319,103900.0,103880.0,0.17175495]
[1762251404981,0.01797319,103900.0,103880.0,0.17175495]
[1762251405335,0.01297319,103900.0,103890.0,0.19251131]
[1762251405710,0.01797319,103900.0,103890.0,0.19251131]
[1762251405871,0.01797319,103900.0,103890.0,0.09625131]
[1762251406079,0.01597319,103900.0,103890.0,0.09625131]
[1762251406481,0.01797319,103900.0,103890.0,0.19251131]
[1762251406683,0.007,103900.0,103890.0,0.19251131]
[1762251407131,0.007,103900.0,103880.0,0.18149494]
[1762251407325,0.007,103900.0,103880.0,0.08523494]
[1762251407867,0.007,103900.0,103880.0,0.03618228]
[1762251408080,0.002,103900.0,103870.0,0.00048699]
[1762251408304,0.03771,103890.0,103870.0,0.05464699]
[1762251408940,0.03771,103890.0,103860.0,0.03618228]
[1762251409148,0.03771,103890.0,103860.0,0.23837593]
[1762251409348,0.10048979,103900.0,103860.0,0.23837593]
[1762251409557,0.345,103890.0,103870.0,0.1925477]
[1762251410461,0.005,103890.0,103870.0,0.1925477]
[1762251410661,0.005,103890.0,103870.0,0.0962577]
[1762251410868,0.06075979,103900.0,103870.0,0.19254763]
[1762251411065,0.002,103890.0,103860.0,0.23837593]
[1762251411269,0.007,103890.0,103870.0,0.19254763]
[1762251411611,0.3877598,103900.0,103870.0,0.20217504]
[1762251411813,0.39775979,103900.0,103870.0,0.20217504]
[1762251412056,0.3994998,103900.0,103870.0,0.10590504]
[1762251412261,0.3954998,103900.0,103870.0,0.10590504]
[1762251412459,0.3577898,103900.0,103880.0,0.19252919]
[1762251412671,0.003,103890.0,103880.0,0.19252984]
[1762251412868,0.003,103890.0,103870.0,0.10590504]
[1762251413082,0.003,103890.0,103870.0,0.19254402]
[1762251413916,0.0097898,103900.0,103870.0,0.10591143]
[1762251414117,0.352,103900.0,103870.0,0.2021757]
[1762251414490,0.348,103900.0,103870.0,0.20217535]
[1762251414705,0.34,103900.0,103870.0,0.20217535]
[1762251414881,0.003,103890.0,103870.0,0.20217535]
[1762251415033,0.3576198,103900.0,103860.0,0.24811592]
[1762251415234,0.3576198,103900.0,103870.0,0.20217325]
[1762251415585,0.3616198,103900.0,103870.0,0.20217325]
[1762251415793,0.3496198,103900.0,103870.0,0.20217325]
[1762251416151,0.3496198,103900.0,103880.0,0.19252843]
[1762251416361,0.0096198,103900.0,103880.0,0.29412843]
[1762251416544,0.04664999,103930.0,103890.0,0.20213687]
[1762251416758,0.00026,103920.0,103890.0,0.10585464]
[1762251416957,0.34,103920.0,103900.0,0.19249265]
[1762251417522,0.001,103900.0,103880.0,0.31349491]
[1762251417723,0.001,103900.0,103890.0,0.19251131]
[1762251417929,0.01461699,103920.0,103890.0,0.20213687]
[1762251418128,0.01761699,103920.0,103890.0,0.20213687]
[1762251418373,0.01761699,103920.0,103880.0,0.21724491]
[1762251418588,0.00987699,103920.0,103890.0,0.19251034]
[1762251418737,0.003,103900.0,103890.0,0.19251034]
[1762251419799,0.003,103900.0,103890.0,0.2074759]
[1762251419997,0.00961699,103920.0,103900.0,0.1924769]
[1762251420230,0.00961699,103920.0,103910.0,0.19247425]
[1762251420435,0.009,103920.0,103910.0,0.19247425]
[1762251420640,0.006,103920.0,103910.0,0.19247425]
[1762251420813,0.006,103920.0,103900.0,0.30370153]
[1762251421025,0.01044549,103930.0,103900.0,0.1016]
[1762251421402,0.006,103920.0,103890.0,0.45339817]
[1762251421618,0.01044549,103930.0,103890.0,0.45339817]
[1762251421619,0.06176233,103940.0,103900.0,0.11182]
[1762251421779,0.06190826,103940.0,103910.0,0.04915]
[1762251421986,0.06190826,103940.0,103910.0,0.14783]
[1762251422241,0.05071,103920.0,103910.0,0.02581]
[1762251422435,0.05071,103920.0,103900.0,0.03238]
[1762251422633,0.40098,103910.0,103900.0,0.03238]
[1762251423551,0.34,103910.0,103900.0,0.06564]
[1762251423968,0.34,103910.0,103880.0,0.20392492]
[1762251424167,0.03771,103920.0,103890.0,0.20213593]
[1762251424373,0.004,103910.0,103890.0,0.20213593]
[1762251424545,0.344,103910.0,103890.0,0.20213593]
[1762251424901,0.35,103910.0,103900.0,0.19349278]
[1762251425123,0.006,103910.0,103900.0,0.19349278]
[1762251425575,0.006,103910.0,103900.0,0.22967506]
[1762251425775,0.00577,103910.0,103900.0,0.23501506]
[1762251426203,0.003,103920.0,103910.0,0.19247425]
[1762251426597,0.00980813,103940.0,103900.0,0.16303967]
[1762251426805,0.08724813,103940.0,103900.0,0.24829884]
[1762251427030,0.001,103910.0,103900.0,0.24829884]
[1762251427245,0.08724813,103940.0,103900.0,0.24829884]
[1762251427447,0.003,103920.0,103910.0,0.20409763]
[1762251427704,0.003,103920.0,103910.0,0.10785763]
[1762251427889,0.00980813,103940.0,103920.0,0.1924546]
[1762251428551,0.00980813,103940.0,103920.0,0.1924557]
[1762251428754,0.00014593,103940.0,103930.0,0.19243721]
[1762251429293,0.00014593,103940.0,103930.0,0.18586721]
[1762251429504,0.00014593,103940.0,103930.0,0.09620721]
[1762251429901,0.00614593,103940.0,103930.0,0.09620721]
[1762251430108,0.00614593,103940.0,103920.0,0.20345569]
[1762251430310,0.00014593,103940.0,103930.0,0.19243721]
[1762251430487,0.00014593,103940.0,103930.0,0.19543721]
[1762251430488,0.00214593,103940.0,103930.0,0.19543721]
[1762251430719,0.00214593,103940.0,103930.0,0.003]
[1762251431174,0.00014593,103940.0,103930.0,0.001]
[1762251431383,0.00214593,103940.0,103920.0,0.002]
[1762251431795,0.00314593,103940.0,103920.0,0.002]
[1762251431996,0.08058593,103940.0,103920.0,0.002]
[1762251432207,0.03771,103930.0,103920.0,0.002]
[1762251432593,0.03771,103930.0,103910.0,0.1474]
[1762251432806,0.07758593,103940.0,103910.0,0.3494958]
[1762251433022,0.08358593,103940.0,103930.0,0.002]
[1762251433249,0.08558593,103940.0,103930.0,0.003]
[1762251433483,0.12829593,103940.0,103910.0,0.1474]
[1762251433713,0.006,103930.0,103910.0,0.1494]
[1762251433987,0.008,103930.0,103910.0,0.1504]
[1762251434201,0.00014593,103940.0,103910.0,0.05116]
[1762251434429,0.08958593,103940.0,103930.0,0.002]
[1762251434702,0.08558593,103940.0,103930.0,0.001]
[1762251434954,0.13585593,103940.0,103930.0,0.001]
[1762251435685,0.34,103930.0,103910.0,0.05116]
[1762251435910,0.34,103930.0,103910.0,0.001]
[1762251436102,0.342,103930.0,103910.0,0.003]
[1762251436342,0.38058,103930.0,103910.0,0.002]
[1762251436554,0.38058,103930.0,103900.0,0.1474]
[1762251436782,0.04758,103930.0,103910.0,0.002]
[1762251437204,0.13065,103920.0,103910.0,0.002]
[1762251437345,0.13065,103920.0,103880.0,0.25708543]
[1762251437578,0.13065,103920.0,103910.0,0.001]
[1762251437776,0.07432696,103920.0,103910.0,0.001]
[1762251438356,0.15470696,103920.0,103910.0,0.001]
[1762251438565,0.13065,103920.0,103910.0,0.001]
[1762251438772,0.47065,103920.0,103910.0,0.001]
[1762251439001,0.34,103910.0,103870.0,0.19254722]
[1762251439975,0.08338,103920.0,103860.0,0.41211725]
[1762251440142,0.08038,103910.0,103860.0,0.41211725]
[1762251440331,0.08438,103910.0,103850.0,0.60447574]
[1762251440715,0.08638,103910.0,103870.0,0.001]
[1762251440852,0.09547907,103920.0,103870.0,0.09547907]
[1762251441057,0.02012212,103910.0,103870.0,0.11654907]
[1762251441646,0.02012212,103910.0,103870.0,0.09537907]
[1762251441851,0.09085,103880.0,103860.0,0.02107]
[1762251442082,0.04058,103870.0,103860.0,0.02107]
[1762251442250,0.09085,103870.0,103850.0,0.04122907]